bitfinex/quotes_ETHUSD_20240711
["timestamp","ask_amount","ask_price","bid_price","bid_amount"]
[1720667382590,1.4880575,3102.1,3102.0,0.6]
[1720667382998,0.37069389,3102.1,3102.0,0.6]
[1720667383227,0.37069389,3102.1,3102.0,0.88876]
[1720667383745,0.33591643,3102.1,3102.0,0.88876]
[1720667384798,1.60336627,3102.9,3102.0,0.88876]
[1720667384994,1.47278804,3102.8,3102.0,0.6]
[1720667385199,1.47274778,3102.7,3102.0,0.6]
[1720667385412,1.47289802,3102.6,3102.0,0.6]
[1720667385712,1.47289834,3102.5,3102.0,0.6]
[1720667385912,1.22199747,3102.4,3102.0,0.6]
[1720667386232,1.22199747,3102.3,3102.0,0.6]
[1720667386436,1.11728428,3102.2,3102.0,0.6]
[1720667386734,1.22198498,3102.1,3102.0,0.6]
[1720667387109,1.25453129,3102.1,3102.0,0.6]
[1720667387310,1.25452482,3102.1,3102.0,0.6]
[1720667388815,1.25455002,3102.1,3102.0,0.6]
[1720667389230,1.50504036,3102.1,3102.0,0.6]
[1720667389908,2.15619515,3102.1,3102.0,0.6]
[1720667390098,5.15619515,3102.1,3102.0,0.6]
[1720667390299,5.15619515,3102.1,3100.9,2.4005]
[1720667390300,2.15619515,3102.1,3100.9,2.4005]
[1720667390499,1.47249405,3102.0,3100.9,2.4005]
[1720667390738,1.47249405,3101.9,3100.9,2.4005]
[1720667391048,1.47249405,3101.8,3100.9,2.4005]
[1720667391335,1.47249405,3101.7,3100.9,2.4005]
[1720667391639,1.22200371,3101.6,3100.9,2.4005]
[1720667391845,0.03197753,3101.7,3100.9,2.4005]
[1720667391846,1.1173211,3101.5,3100.9,2.4005]
[1720667392027,1.11751334,3101.4,3101.0,2.08048953]
[1720667392225,1.11751334,3101.3,3101.2,2.4983]
[1720667392437,1.60336627,3102.4,3101.3,2.4983]
[1720667392631,1.11719004,3102.3,3101.5,2.4983]
[1720667392806,1.11719004,3102.2,3101.8,2.016]
[1720667393006,0.03191724,3102.2,3102.0,2.4156]
[1720667393446,1.11715186,3102.1,3102.0,2.4156]
[1720667393621,1.60336627,3102.7,3102.0,2.4156]
[1720667393948,0.03190915,3102.1,3102.0,2.4156]
[1720667394249,1.14901152,3102.1,3102.0,2.65716]
[1720667394414,1.11710237,3102.1,3102.0,2.65716]
[1720667394614,1.14901424,3102.1,3102.0,2.65716]
[1720667394922,1.14901424,3102.1,3102.0,2.6156]
[1720667395120,1.14911142,3102.1,3102.0,0.2]
[1720667395943,1.5042991,3102.1,3102.0,0.2]
[1720667398068,1.50380303,3102.1,3102.0,0.2]
[1720667398392,4.50412348,3102.1,3102.0,0.2]
[1720667398555,7.20936949,3102.1,3102.0,0.2]
[1720667399066,5.20378583,3102.1,3102.0,0.4]
[1720667400352,7.54528519,3102.1,3102.0,0.4]
[1720667400660,2.53970153,3102.1,3102.0,0.4]
[1720667400859,1.84003918,3102.1,3102.0,0.4]
[1720667401079,1.50390993,3102.1,3102.0,0.4]
[1720667401274,1.14925904,3102.1,3102.0,0.4]
[1720667402139,1.14925904,3102.1,3102.0,2.8953]
[1720667402576,1.1490274,3102.1,3102.0,2.8953]
[1720667402982,1.1490274,3102.1,3102.0,0.6]
[1720667403292,1.25373223,3102.1,3102.0,0.6]
[1720667403597,1.50436812,3102.1,3102.0,0.6]
[1720667404091,1.85542969,3102.1,3102.0,0.6]
[1720667404286,1.85569655,3102.1,3102.0,0.6]
[1720667405816,1.50463498,3102.1,3102.0,0.6]
[1720667407101,1.50463498,3102.1,3102.0,0.8]
[1720667407606,1.50448257,3102.1,3102.0,0.8]
[1720667408177,1.25384668,3102.1,3102.0,0.8]
[1720667408518,1.50428937,3102.1,3102.0,0.8]
[1720667408691,1.50430996,3102.1,3102.0,0.8]
[1720667410794,1.50445517,3102.1,3102.0,0.8]
[1720667411574,3.86932697,3102.1,3102.0,0.8]
[1720667411808,1.85621217,3102.1,3102.0,0.8]
[1720667414012,1.85632446,3102.1,3102.0,0.8]
[1720667414232,0.63422254,3102.1,3102.0,0.8]
[1720667414372,1.85642882,3102.1,3102.0,0.8]
[1720667415791,5.81242882,3102.1,3100.6,2.4337]
[1720667416129,2.01140715,3101.4,3100.6,2.4337]
[1720667416408,1.50366603,3101.3,3100.6,2.4337]
[1720667416620,1.47275995,3101.2,3100.6,2.4337]
[1720667416924,1.50374889,3101.1,3100.6,2.4337]
[1720667417073,1.47275995,3101.0,3100.6,2.4337]
[1720667417275,1.47275995,3100.9,3100.6,2.4337]
[1720667417473,0.03097273,3100.9,3100.6,2.4337]
[1720667417710,1.22226628,3100.8,3100.6,2.68891731]
[1720667417879,2.34631357,3101.5,3100.6,2.68891731]
[1720667418082,0.03097015,3100.7,3100.6,2.4337]
[1720667418318,2.34631357,3101.5,3100.6,2.4337]
[1720667418521,1.4712326,3101.4,3100.6,2.4337]
[1720667418683,1.4712326,3101.3,3100.6,2.4337]
[1720667418884,1.4712326,3101.2,3100.6,2.4337]
[1720667419092,1.4712326,3101.1,3100.6,2.4337]
[1720667419323,1.4712326,3101.0,3100.6,2.4337]
[1720667419481,1.22223845,3100.9,3100.6,2.4337]
[1720667419681,0.03099645,3101.0,3100.6,2.4337]
[1720667420022,1.47117492,3100.9,3100.6,2.4337]
[1720667420238,1.50205602,3100.8,3100.4,0.1184731]
[1720667420394,1.47117492,3100.7,3100.4,0.1184731]
[1720667420583,1.25318492,3100.6,3100.4,0.1184731]
[1720667420787,0.0309626,3100.6,3100.4,0.1184731]
[1720667421120,3.61141913,3101.3,3100.4,0.56552041]
[1720667421427,1.50136992,3101.2,3100.4,0.1184731]
[1720667421581,1.47063705,3101.1,3100.4,0.1184731]
[1720667421779,1.50134936,3101.0,3100.4,0.1184731]
[1720667421982,1.47063705,3100.9,3100.4,0.1184731]
[1720667422179,1.50133752,3100.8,3100.4,0.1184731]
[1720667422431,1.47063705,3100.7,3100.4,0.1184731]
[1720667422639,1.22227193,3100.6,3100.4,0.1184731]
[1720667422837,1.22227193,3100.5,3100.4,0.1184731]
[1720667423220,1.25260172,3100.5,3100.4,0.1184731]
[1720667423428,0.03032979,3100.5,3100.4,0.1184731]
[1720667423644,5.00805286,3101.2,3100.4,0.1184731]
[1720667423948,0.03032041,3100.5,3100.4,0.1184731]
[1720667424103,0.10456112,3101.0,3100.4,0.1184731]
[1720667424298,4.77894751,3101.1,3100.4,0.1184731]
[1720667424299,0.03032343,3100.5,3100.4,0.1184731]
[1720667424552,1.47070079,3100.5,3100.4,0.1184731]
[1720667424719,1.39649851,3100.5,3100.4,0.1184731]
[1720667425048,4.30769851,3100.5,3100.4,0.1184731]
[1720667425214,5.61318493,3100.5,3100.4,0.1184731]
[1720667425417,12.01918493,3100.5,3100.4,0.1184731]
[1720667425602,8.61318493,3100.5,3100.4,0.1184731]
[1720667425804,7.70583446,3100.5,3100.4,0.1184731]
[1720667426009,1.39649851,3100.5,3100.4,0.1184731]
[1720667426447,1.14823258,3100.5,3100.4,0.1184731]
[1720667426739,1.14827859,3100.5,3100.4,0.1184731]
[1720667427040,1.39607794,3100.5,3100.4,0.1184731]
[1720667427411,0.03032503,3100.5,3100.4,0.1184731]
[1720667427608,1.11797132,3100.7,3100.4,0.1184731]
[1720667427822,0.24780581,3100.6,3100.4,0.1184731]
[1720667428023,1.39581381,3100.5,3100.4,0.1184731]
[1720667428449,1.148008,3100.5,3100.4,0.1184731]
[1720667429748,0.03003668,3100.5,3100.4,0.1184731]
[1720667430114,1.60336627,3100.8,3100.4,0.1184731]
[1720667430319,0.03004705,3100.5,3100.4,0.1184731]
[1720667430649,1.14796735,3100.5,3100.4,0.1184731]
[1720667430858,0.28258104,3100.7,3100.4,0.1184731]
[1720667431012,0.03004705,3100.5,3100.4,0.1184731]
[1720667431220,1.14798425,3100.5,3100.4,0.1184731]
[1720667431557,0.03004705,3100.5,3100.4,0.1184731]
[1720667431917,1.60336627,3100.8,3100.4,0.1184731]
[1720667432117,0.06346976,3100.5,3100.4,0.1184731]
[1720667432345,2.0637029,3100.8,3100.4,0.1184731]
[1720667432552,0.06346976,3100.5,3100.4,0.1184731]
[1720667432747,2.0637029,3100.8,3100.4,0.1184731]
[1720667432949,0.0634674,3100.5,3100.4,0.1184731]
[1720667433152,1.11791165,3100.5,3100.4,0.1184731]
[1720667433356,0.0634846,3100.5,3100.4,0.1184731]
[1720667433660,1.11791165,3100.6,3100.4,0.1184731]
[1720667433867,0.0634846,3100.5,3100.4,0.1184731]
[1720667434236,1.18142777,3100.5,3100.4,0.1184731]
[1720667435195,1.42914378,3100.5,3100.4,0.1184731]
[1720667435554,1.97914378,3100.5,3100.4,0.1184731]
[1720667436872,1.42914378,3100.5,3100.4,0.1184731]
[1720667437077,2.17436911,3100.5,3100.4,0.1184731]
[1720667437484,2.17450266,3100.5,3100.4,0.1184731]
[1720667438201,2.17428816,3100.5,3100.4,0.1184731]
[1720667438998,2.72428816,3100.5,3100.4,0.1184731]
[1720667439183,5.72428816,3100.5,3100.4,0.1184731]
[1720667440858,5.724424,3100.5,3100.4,0.1184731]
[1720667441771,9.130424,3100.5,3100.4,0.1184731]
[1720667442189,5.724424,3100.5,3100.4,0.1184731]
[1720667444309,8.01221144,3100.5,3100.4,0.1184731]
[1720667444462,9.13046131,3100.5,3100.4,0.1184731]
[1720667445196,5.72446131,3100.5,3100.4,0.1184731]
[1720667445704,4.42923598,3100.5,3100.4,0.1184731]
[1720667445914,1.18173447,3100.5,3100.4,0.1184731]
[1720667446762,1.42936687,3100.5,3100.4,0.1184731]
[1720667447536,0.861117,3100.5,3100.4,0.1184731]
[1720667447740,5.38524083,3100.5,3100.4,0.1184731]
[1720667448035,9.22376491,3100.5,3100.4,0.1184731]
[1720667448543,9.22385226,3100.5,3100.4,0.1184731]
[1720667450947,10.37214108,3100.5,3100.4,0.1184731]
[1720667451244,11.49040053,3100.5,3100.4,0.1184731]
[1720667452761,11.81400053,3100.5,3099.0,1.3333]
[1720667452909,3.406,3100.3,3099.0,1.3333]
[1720667453115,4.36589185,3100.2,3099.0,1.3333]
[1720667453314,1.91589185,3100.1,3099.0,1.3333]
[1720667453623,1.36589185,3100.0,3099.0,1.3333]
[1720667453834,1.42895889,3099.9,3099.0,1.3333]
[1720667454017,1.11825945,3099.8,3099.0,1.3333]
[1720667454218,0.06306443,3099.7,3099.0,1.3333]
[1720667454418,1.11831171,3099.9,3099.0,1.3333]
[1720667454759,1.4282771,3099.8,3099.0,1.3333]
[1720667454943,1.36531151,3099.7,3099.0,1.3333]
[1720667455126,1.36531151,3099.6,3098.9,0.005]
[1720667455326,1.3651272,3099.5,3098.9,0.005]
[1720667455528,1.11831171,3099.4,3098.9,0.005]
[1720667455742,0.06293747,3099.4,3098.9,0.005]
[1720667456055,1.11831171,3099.3,3098.9,0.005]
[1720667456363,0.06286926,3099.2,3098.9,0.005]
[1720667456528,1.11831171,3099.1,3098.9,0.005]
[1720667456734,1.18117479,3099.1,3098.9,0.005]
[1720667457058,1.11831171,3099.0,3098.9,0.005]
[1720667457350,1.18113575,3099.0,3098.9,0.005]
[1720667457568,0.06282404,3099.0,3098.9,0.005]
[1720667457768,1.18125091,3099.0,3098.9,0.005]
[1720667459235,1.18125091,3099.0,3098.9,2.4427]
[1720667459597,0.06282404,3099.0,3098.9,2.68697]
[1720667460096,0.06276513,3099.0,3098.9,2.68697]
[1720667460260,1.60336627,3099.6,3098.9,2.75149605]
[1720667460461,1.60336627,3099.6,3099.2,2.333]
[1720667460649,1.60336627,3099.6,3099.3,0.4349]
[1720667460849,12.47,3100.3,3099.3,0.49942178]
[1720667460850,1.60336627,3100.3,3099.3,0.49942178]
[1720667461072,1.42794179,3100.2,3099.3,0.49942178]
[1720667461295,1.36509229,3100.1,3099.3,0.49942178]
[1720667461503,0.0628495,3100.2,3100.0,2.333]
[1720667461685,1.60336627,3101.2,3100.1,0.06450135]
[1720667461879,1.36582174,3101.1,3100.3,2.016]
[1720667462044,1.60336627,3101.2,3100.4,2.333]
[1720667462489,1.60336627,3101.2,3100.4,2.39748983]
[1720667462713,1.60336627,3102.3,3100.8,2.333]
[1720667462915,1.3661877,3102.2,3101.0,2.333]
[1720667463205,1.11739997,3102.1,3101.1,2.016]
[1720667463413,1.60336627,3102.3,3101.1,2.016]
[1720667463571,1.11730172,3102.0,3101.1,2.016]
[1720667463780,1.11730172,3101.9,3101.0,2.333]
[1720667463956,0.24913344,3101.8,3101.0,2.333]
[1720667464161,1.36626415,3101.7,3101.0,2.5663]
[1720667464389,1.1174874,3101.6,3101.0,2.5663]
[1720667464604,1.60336627,3101.9,3101.0,2.5663]
[1720667464767,1.60336627,3101.9,3100.7,2.016]
[1720667464768,1.36636267,3101.8,3100.7,2.016]
[1720667464979,1.36636267,3101.7,3100.5,2.80434898]
[1720667465296,1.1175206,3101.6,3100.5,2.80434898]
[1720667465473,1.60336627,3101.9,3100.5,2.80434898]
[1720667465474,1.1175206,3101.8,3100.7,2.016]
[1720667465814,1.11752057,3101.7,3100.8,0.2016]
[1720667465993,1.36639774,3101.6,3100.9,2.272]
[1720667466191,0.33591784,3101.7,3100.9,2.272]
[1720667467563,0.33591784,3101.7,3101.1,2.016]
[1720667467957,0.33591784,3101.7,3100.9,2.272]
[1720667468162,0.33591784,3101.7,3101.0,0.24736]
[1720667468567,0.06197645,3101.6,3101.0,0.24736]
[1720667468767,0.06197645,3101.6,3100.9,4.288]
[1720667469661,0.06197645,3101.6,3100.9,2.272]
[1720667469862,0.06197645,3101.6,3101.0,0.06449093]
[1720667470063,0.06197645,3101.6,3100.1,2.2931]
[1720667470258,0.06197645,3101.6,3100.3,2.016]
[1720667470463,0.06197645,3101.6,3100.4,0.2016]
[1720667470671,0.06197645,3101.6,3100.3,2.016]
[1720667470895,1.3658506,3101.5,3100.1,2.2931]
[1720667471193,1.36571132,3101.4,3099.9,2.016]
[1720667471402,1.91571132,3101.3,3099.6,2.3145]
[1720667471608,1.55728245,3101.2,3099.7,0.43305]
[1720667471768,0.19157113,3101.2,3099.7,0.49755702]
[1720667472110,0.06173659,3101.1,3099.9,2.016]
[1720667472305,0.06173659,3101.1,3100.0,0.06450115]
[1720667472462,1.60336627,3101.5,3100.3,2.016]
[1720667472695,0.06175766,3101.4,3100.4,2.3145]
[1720667473608,0.06175766,3101.4,3100.3,2.016]
[1720667473809,0.16651239,3101.3,3100.3,2.016]
[1720667474125,0.06180772,3101.2,3100.3,2.016]
[1720667475417,0.06180772,3101.2,3100.4,0.06449747]
[1720667475984,0.06180772,3101.2,3100.3,2.016]
[1720667476345,0.06180772,3101.2,3099.9,4.3305]
[1720667476641,1.11785875,3101.1,3099.9,4.806855]
[1720667476828,0.06180772,3101.2,3099.9,2.016]
[1720667477033,0.06168897,3101.0,3099.9,2.016]
[1720667477351,0.06168194,3100.9,3099.9,2.016]
[1720667477941,0.06168194,3100.9,3100.0,0.06450688]
[1720667479127,1.60336627,3101.1,3099.9,2.016]
[1720667479331,0.06154464,3100.8,3100.0,0.2016]
[1720667479527,1.60336627,3101.1,3100.1,0.06449526]
[1720667479847,0.06153761,3100.7,3100.3,2.016]
[1720667480005,1.60336627,3101.1,3100.3,2.016]
[1720667480443,0.06153896,3101.0,3100.3,2.016]
[1720667480819,0.06153896,3101.0,3100.0,0.2016]
[1720667481010,0.06153896,3101.0,3100.1,0.22176]
[1720667481208,0.33592933,3100.9,3099.9,2.016]
[1720667481415,0.33592933,3100.9,3100.0,0.06450179]
[1720667481615,0.06152984,3100.8,3100.0,0.06450179]
[1720667482018,0.06152984,3100.8,3099.9,2.016]
[1720667482317,0.06152984,3100.8,3100.0,0.06450464]
[1720667482516,0.06152984,3100.8,3100.1,0.20805046]
[1720667483151,0.06152984,3100.8,3100.2,0.06450338]
[1720667483356,0.06152984,3100.8,3100.1,0.20805046]
[1720667483715,0.06152984,3100.8,3100.2,0.06449704]
[1720667484028,0.06152984,3100.8,3100.4,2.016]
[1720667484229,0.06152984,3100.8,3100.5,0.56281007]
[1720667484430,1.60336627,3101.5,3100.5,0.56281007]
[1720667484739,0.06159547,3101.4,3101.1,2.016]
[1720667484955,0.06159547,3101.4,3101.2,2.41038329]
[1720667485161,1.60336627,3102.4,3101.3,0.06447019]
[1720667485449,1.60336627,3102.4,3101.7,2.016]
[1720667485652,0.06182966,3102.3,3101.4,0.59603702]
[1720667485819,1.11730685,3102.2,3101.4,0.59603702]
[1720667486022,0.06182966,3102.3,3100.5,3.72357]
[1720667486023,3.49244492,3102.1,3100.9,2.016]
[1720667486237,1.11734492,3102.0,3100.9,2.016]
[1720667486755,1.17939742,3101.9,3100.9,2.016]
[1720667487252,1.11744447,3101.8,3100.9,2.016]
[1720667487589,0.06193268,3101.7,3100.9,2.016]
[1720667487771,1.11744447,3101.6,3100.9,2.2176]
[1720667487965,0.06188883,3101.6,3100.9,2.2176]
[1720667488117,0.06188883,3101.6,3100.9,2.016]
[1720667488118,1.11755021,3101.5,3100.9,2.016]
[1720667488318,1.11755021,3101.4,3100.9,2.016]
[1720667488846,0.06201833,3101.3,3100.5,2.016]
[1720667489115,1.11755021,3101.2,3100.5,2.016]
[1720667489343,1.1794361,3101.2,3100.1,3.0]
[1720667489551,1.1794361,3101.2,3100.0,2.292]
[1720667489552,1.11755021,3101.1,3100.3,2.016]
[1720667489854,1.11764549,3101.0,3100.3,2.016]
[1720667490060,1.11764549,3100.9,3100.3,2.016]
[1720667490264,0.06187616,3100.9,3100.3,2.016]
[1720667490555,0.06187616,3100.9,3100.0,2.292]
[1720667490556,1.11764549,3100.8,3099.9,2.016]
[1720667490864,1.17931665,3100.8,3099.9,2.2176]
[1720667491172,1.11764549,3100.7,3099.9,2.2176]
[1720667491393,1.11764549,3100.7,3099.9,2.016]
[1720667491689,0.06178444,3100.6,3099.9,2.016]
[1720667491867,1.11764549,3100.5,3099.9,2.016]
[1720667492191,0.0617038,3100.4,3099.9,2.016]
[1720667492782,1.60336627,3101.0,3099.9,2.016]
[1720667492989,0.06161567,3100.3,3099.9,2.016]
[1720667493148,1.57812242,3100.9,3099.9,2.016]
[1720667493149,0.46033663,3100.9,3099.9,2.016]
[1720667493485,0.06159862,3100.2,3099.9,2.016]
[1720667493695,0.46033663,3100.9,3099.9,2.016]
[1720667493848,1.11777789,3100.8,3100.0,0.2016]
[1720667494049,1.11777789,3100.7,3100.0,0.2016]
[1720667494461,1.17942266,3100.7,3099.9,2.016]
[1720667494679,1.11777789,3100.6,3099.9,2.016]
[1720667494850,0.06156444,3100.5,3099.9,2.016]
[1720667495048,1.11777789,3100.4,3099.9,2.016]
[1720667495272,0.06154964,3100.3,3099.7,2.016]
[1720667495483,1.60336627,3101.0,3099.8,0.5016]
[1720667495691,1.1795331,3100.9,3099.8,3.0]
[1720667495888,1.11782872,3100.8,3099.7,2.016]
[1720667496087,1.11782872,3100.7,3099.7,2.016]
[1720667496277,1.17950672,3100.7,3099.7,2.016]
[1720667496478,1.11782872,3100.6,3099.7,2.016]
[1720667496649,0.06153588,3100.5,3099.7,2.76449]
[1720667496855,1.11782872,3100.4,3099.7,2.76449]
[1720667497049,1.17933821,3100.3,3099.7,2.76449]
[1720667497264,0.06150949,3100.3,3099.7,2.76449]
[1720667497655,1.60336627,3101.0,3099.7,2.76449]
[1720667497880,1.63962792,3100.9,3099.7,2.76449]
[1720667498083,1.1178426,3100.8,3099.7,2.76449]
[1720667498384,1.17936799,3100.7,3099.7,2.76449]
[1720667498586,1.1178426,3100.6,3099.7,2.76449]
[1720667498784,1.1178426,3100.5,3099.7,2.76449]
[1720667498996,1.17934827,3100.5,3099.8,0.276449]
[1720667499293,1.1178426,3100.4,3099.8,0.276449]
[1720667499664,0.06147304,3100.3,3099.8,0.276449]
[1720667499865,1.11783052,3100.2,3099.8,0.276449]
[1720667500199,3.46033663,3100.9,3099.8,0.276449]
[1720667500392,1.62421974,3100.8,3099.7,2.016]
[1720667500593,1.11784945,3100.7,3099.7,2.016]
[1720667500795,1.11784945,3100.6,3099.7,2.016]
[1720667501098,1.11784945,3100.5,3099.7,2.016]
[1720667501261,1.17525297,3100.4,3099.3,2.016]
[1720667501462,1.11784945,3100.3,3099.3,2.016]
[1720667501666,0.05739728,3100.2,3099.3,2.016]
[1720667501866,1.11784945,3100.1,3099.3,2.016]
[1720667502094,0.05726511,3100.0,3099.3,2.016]
[1720667502297,1.11784945,3099.9,3099.3,2.016]
[1720667502626,1.11784945,3099.9,3098.9,0.24927]
[1720667502627,0.05726564,3099.8,3098.9,2.26527]
[1720667502804,0.05726564,3099.8,3098.9,2.021]
[1720667503105,0.05726564,3099.8,3098.9,0.005]
[1720667503106,2.427,3099.6,3098.9,0.005]
[1720667503401,1.27962061,3099.5,3098.9,0.005]
[1720667503566,1.11820344,3099.4,3098.9,0.005]
[1720667503972,0.05718312,3099.3,3098.9,0.005]
[1720667504177,1.11820344,3099.2,3098.9,0.005]
[1720667504715,0.05716906,3099.1,3098.9,0.005]
[1720667504921,1.11820344,3099.0,3098.9,0.005]
[1720667505210,0.05700613,3099.0,3098.9,0.005]
[1720667505516,3.0,3099.5,3098.9,0.005]
[1720667505697,2.22948094,3099.4,3098.9,0.005]
[1720667505896,1.46941511,3099.3,3098.9,0.005]
[1720667506074,1.17538734,3099.2,3098.9,0.005]
[1720667506490,0.05701563,3099.2,3098.9,0.005]
[1720667506688,1.1184067,3099.1,3098.9,0.005]
[1720667506885,0.05666011,3099.0,3098.9,0.005]
[1720667507215,1.82145431,3099.4,3098.9,0.005]
[1720667507374,0.05662905,3099.0,3098.9,0.005]
[1720667507574,3.48214543,3099.3,3098.9,0.005]
[1720667507815,0.05658461,3099.0,3098.9,0.005]
[1720667507981,0.48214543,3099.3,3098.9,0.005]
[1720667508173,0.05658461,3099.0,3098.9,0.005]
[1720667508399,0.48214543,3099.3,3098.9,0.005]
[1720667508591,0.05658461,3099.0,3098.9,0.005]
[1720667508798,0.48214543,3099.3,3098.9,0.005]
[1720667509002,0.05658214,3099.0,3098.9,0.005]
[1720667509203,0.48214543,3099.3,3098.9,0.005]
[1720667509418,0.05658461,3099.0,3098.9,0.005]
[1720667509626,0.48214543,3099.3,3098.9,0.005]
[1720667509912,1.11842961,3099.2,3098.9,0.005]
[1720667510165,0.05657978,3099.1,3098.9,0.005]
[1720667510283,1.17500939,3099.1,3098.9,0.005]
[1720667510477,1.11842961,3099.0,3098.9,0.005]
[1720667510687,1.17500236,3099.0,3098.9,0.005]
[1720667512191,0.05657275,3099.0,3098.9,0.005]
[1720667512499,0.48214543,3099.3,3098.9,0.005]
[1720667512705,1.17511363,3099.2,3098.9,0.005]
[1720667512905,1.2842785,3099.1,3098.9,0.005]
[1720667513116,0.05653379,3099.0,3098.9,0.005]
[1720667513305,3.0,3099.3,3098.9,0.005]
[1720667513497,0.05645538,3099.2,3098.9,0.005]
[1720667513789,0.70303663,3099.4,3098.9,0.005]
[1720667513991,0.05643503,3099.1,3098.9,0.005]
[1720667514190,1.48873417,3099.3,3098.9,0.005]
[1720667514191,0.37030366,3099.3,3098.9,0.005]
[1720667514391,0.05645233,3099.0,3098.9,0.005]
[1720667514603,0.37030366,3099.3,3098.9,0.005]
[1720667514808,0.05645233,3099.0,3098.9,0.005]
[1720667515089,0.05644854,3099.0,3098.9,0.005]
[1720667515289,0.37030366,3099.3,3098.9,0.005]
[1720667515522,0.05646261,3099.2,3098.9,0.005]
[1720667515834,0.37030366,3099.3,3098.9,0.005]
[1720667516000,0.36897599,3100.3,3098.9,0.005]
[1720667516001,0.05645557,3099.1,3098.9,0.005]
[1720667516197,12.47,3100.0,3098.9,0.005]
[1720667516403,0.05644605,3099.0,3098.9,0.005]
[1720667516928,4.3662169,3099.6,3098.9,0.005]
[1720667517132,0.05649365,3099.5,3098.9,0.005]
[1720667517339,0.05649365,3099.5,3098.9,0.06952615]
[1720667517492,1.60336627,3099.9,3098.9,0.005]
[1720667517710,0.05663591,3099.8,3098.9,0.005]
[1720667518422,1.11829331,3099.7,3098.9,0.005]
[1720667518615,1.11829331,3099.6,3098.9,0.005]
[1720667518945,0.05665664,3099.6,3098.9,0.005]
[1720667519106,1.60336627,3099.9,3098.9,0.005]
[1720667519307,1.36890056,3099.8,3098.9,0.005]
[1720667519612,1.11831031,3099.7,3098.9,0.005]
[1720667519796,1.11826406,3099.6,3098.9,0.005]
[1720667520002,0.05664922,3099.6,3098.9,0.005]
[1720667520197,1.60336627,3099.9,3098.9,0.005]
[1720667520425,0.05664218,3099.5,3098.9,0.005]
[1720667520631,1.60336627,3099.9,3099.0,2.4098]
[1720667520825,1.60336627,3099.9,3099.0,2.47432613]
[1720667520826,0.05663996,3099.4,3099.0,2.47432613]
[1720667521029,1.60336627,3099.9,3099.0,2.4098]
[1720667521355,1.60336627,3099.9,3098.9,2.021]
[1720667521356,1.11819838,3099.8,3098.9,2.021]
[1720667521501,0.27215647,3099.7,3098.9,2.021]
[1720667521701,0.05665403,3099.6,3098.9,0.005]
[1720667522845,1.11828155,3099.5,3098.9,0.005]
[1720667523005,0.05665403,3099.6,3098.9,0.005]
[1720667523202,0.05667228,3099.4,3098.9,0.005]
[1720667523433,0.05667931,3099.5,3098.9,0.06953308]
[1720667523613,1.60336627,3099.9,3098.9,0.005]
[1720667523918,1.11819483,3099.8,3098.9,2.08552661]
[1720667524202,0.05668303,3099.7,3098.9,2.08552661]
[1720667524400,0.33582919,3100.0,3098.9,2.08552661]
[1720667524631,0.05668759,3099.6,3099.1,2.3857]
[1720667524832,1.60336627,3100.2,3099.6,2.016]
[1720667525003,1.60336627,3100.6,3099.7,0.26611158]
[1720667525216,0.05298919,3100.1,3099.8,0.06451121]
[1720667525456,0.33585463,3100.8,3099.8,0.06451121]
[1720667525752,1.11784431,3100.7,3099.9,2.2746]
[1720667525917,1.11784431,3100.6,3100.0,0.06450491]
[1720667526119,1.17092629,3100.5,3100.0,0.2984154]
[1720667526318,1.17092629,3100.5,3100.0,0.23391049]
[1720667526319,0.05310872,3100.5,3100.0,0.23391049]
[1720667526523,0.33585463,3100.8,3100.0,0.23391049]
[1720667526715,1.17099026,3100.7,3100.0,0.23391049]
[1720667526921,1.11778089,3100.6,3100.0,0.23391049]
[1720667527134,1.17099958,3100.5,3100.0,0.23391049]
[1720667527346,0.05319532,3100.5,3099.7,0.2016]
[1720667527554,1.11785472,3100.4,3099.6,2.016]
[1720667527758,1.11785472,3100.3,3099.4,2.4173]
[1720667527959,1.11785472,3100.3,3099.2,2.016]
[1720667528113,1.11785472,3100.3,3099.2,2.08051859]
[1720667528114,0.05323883,3100.2,3099.2,2.08051859]
[1720667528319,1.11785472,3100.1,3099.3,0.27257045]
[1720667528519,0.05338312,3100.0,3099.3,0.20805186]
[1720667528721,1.11807565,3099.9,3099.3,0.20805186]
[1720667528939,0.05336906,3099.8,3099.0,2.4173]
[1720667529152,4.11807122,3100.2,3099.0,2.4173]
[1720667529360,1.11807122,3100.1,3099.0,2.4173]
[1720667529559,1.17124119,3100.1,3099.0,2.4173]
[1720667529855,1.53519534,3100.0,3099.1,0.06452382]
[1720667530064,1.11807122,3099.9,3099.1,0.06452382]
[1720667530266,1.17122713,3099.9,3099.0,2.4173]
[1720667530470,1.11807122,3099.8,3099.0,2.48182467]
[1720667530628,1.11807122,3099.8,3099.0,2.4173]
[1720667530978,0.05313291,3099.7,3099.0,2.4173]
[1720667531139,1.11807122,3099.6,3099.0,2.86113]
[1720667531337,0.05311885,3099.5,3099.0,2.86113]
[1720667531649,0.05311885,3099.5,3098.9,0.005]
[1720667531821,1.11824242,3099.4,3098.9,0.005]
[1720667532019,0.05306728,3099.4,3098.9,0.005]
[1720667532257,1.11826955,3099.3,3098.9,0.005]
[1720667532462,1.11826955,3099.2,3098.9,0.005]
[1720667532617,0.05305322,3099.2,3099.0,2.016]
[1720667532832,1.60336627,3100.0,3099.2,2.3044]
[1720667533031,1.60336627,3100.0,3099.5,2.016]
[1720667533852,1.11801121,3099.9,3099.5,2.016]
[1720667534147,1.60336627,3100.0,3099.5,2.016]
[1720667534335,1.11804038,3099.9,3099.6,0.2016]
[1720667534531,1.60336627,3100.0,3099.6,0.2016]
[1720667534840,1.60336627,3100.0,3099.2,2.3044]
[1720667534841,1.11803918,3099.9,3099.2,2.3044]
[1720667535044,1.11803918,3099.8,3099.2,2.3044]
[1720667535247,1.60336627,3100.0,3099.1,2.2181]
[1720667535496,1.11809886,3099.9,3099.1,2.016]
[1720667535661,1.11809886,3099.8,3099.1,2.016]
[1720667535868,1.11809886,3099.9,3099.1,2.016]
[1720667536030,1.11809886,3099.8,3099.1,2.016]
[1720667536237,1.11809886,3099.9,3099.1,2.016]